[Event "FIDE WCCC G10 2018"]
[Site "Santiago de Compostela"]
[Date "2018.11.07"]
[Round "3"]
[White "Cereijo Suarez, Nerea"]
[Black "Zhou, Yafei"]
[Result "0-1"]
[ECO "D19"]
[WhiteElo "1368"]
[BlackElo "1648"]
[Annotator "NA RC"]
[PlyCount "92"]
[EventDate "2018.11.04"]
[EventType "swiss"]
[EventCountry "ESP"]
[SourceTitle "playchess.com"]
[Source "ChessBase"]
[SourceQuality "1"]
[TimeControl "40/5400+30:1800+30"]

1. d4 {[%emt 0:00:00]} d5 {[%emt 0:00:00]} 2. c4 {[%emt 0:00:05]} c6 {[%emt 0:00:00]} 3. Nc3 {[%emt 0:00:46]} Nf6 {[%emt 0:00:00]} 4. Nf3 {[%emt 0:00:41]} dxc4 {[%emt 0:00:00]} 5. a4 {[%emt 0:00:53]} Bf5 {[%emt 0:00:06]} 6. e3 {[%emt 0:00:50]} e6 {[%emt 0:00:06]} 7. Bxc4 {[%emt 0:00:59]} Bb4 {[%emt 0:00:05]} 8. O-O {[%emt 0:01:17]} O-O {[%emt 0:00:05]} 9. Qe2 {[%emt 0:01:41]} Nbd7 {[%emt 0:02:17]} 10. e4 {[%emt 0:03:32]} Bg6 {[%emt 0:00:27]} 11. e5 {[%emt 0:02:47]} Nd5 {[%emt 0:00:26]} 12. Nxd5 {[%emt 0:00:48]} cxd5 {[%emt 0:00:16]} 13. Bd3 {[%emt 0:01:34]} Bxd3 {[%emt 0:06:01]} 14. Qxd3 {[%emt 0:00:12]} Be7 {[%emt 0:00:14]} 15. Bf4 {[%emt 0:12:46]} Rc8 {[%emt 0:07:46]} 16. Rfc1 {[%emt 0:04:03]} Qb6 {[%emt 0:01:45]} 17. Rc2 {[%emt 0:03:23]} Nb8 {[%emt 0:04:58]} 18. Rac1 {[%emt 0:06:49]} Nc6 {[%emt 0:03:56]} 19. Qb5 {[%emt 0:04:00]} Bb4 {[%emt 0:08:27]} 20. Qxb6 {[%emt 0:00:40]} axb6 {[%emt 0:00:06]} 21. h3 {[%emt 0:10:47]} h6 {[%emt 0:06:23]} 22. Kh1 {[%emt 0:01:35]} Rfd8 {[%emt 0:01:03]} 23. Bd2 {[%emt 0:02:58]} Bxd2 {[%emt 0:01:16]} 24. Rxd2 {[%emt 0:00:40]} Nb4 {[%emt 0:07:28]} 25. Rdd1 {[%emt 0:04:03]} Kf8 {[%emt 0:00:45]} 26. Ng1 {[%emt 0:03:37]} Nd3 {[%emt 0:01:40]} 27. Rxd3 {[%emt 0:03:00]} Rxc1 {[%emt 0:00:06]} 28. Rb3 {[%emt 0:00:08]} Ra8 {[%emt 0:02:56]} 29. Rxb6 {[%emt 0:00:31]} Rxa4 {[%emt 0:00:09]} 30. Rxb7 {[%emt 0:00:30]} Raa1 {[%emt 0:00:20]} 31. Rb8+ {[%emt 0:00:18]} Ke7 {[%emt 0:00:10]} 32. Rb7+ {[%emt 0:00:05]} Ke8 {[%emt 0:00:59]} 33. Rb8+ {[%emt 0:00:08]} Kd7 {[%emt 0:00:35]} 34. Rb7+ {[%emt 0:00:05]} Kc6 {[%emt 0:04:58]} 35. Rxf7 {[%emt 0:00:26]} Rxg1+ {[%emt 0:00:13]} 36. Kh2 {[%emt 0:00:02]} Rgd1 {[%emt 0:01:32]} 37. Rxg7 {[%emt 0:01:28]} Rxd4 {[%emt 0:00:32]} 38. Rg6 {[%emt 0:00:28]} Kd7 {[%emt 0:00:51]} 39. Rxh6 {[%emt 0:00:29]} Re4 {[%emt 0:00:11]} 40. Rh7+ {[%emt 0:00:00]} Kc6 {[%emt 0:00:00]} 41. Rh5 {[%emt 0:00:46]} d4 {[%emt 0:01:53]} 42. Rh6 {[%emt 0:00:18]} Kd5 {[%emt 0:01:13]} 43. g4 {[%emt 0:00:10]} d3 {[%emt 0:00:20]} 44. g5 {[%emt 0:00:17]} d2 {[%emt 0:00:08]} 45. Rh8 {[%emt 0:00:05]} d1=Q {[%emt 0:00:26]} 46. Rd8+ {[%emt 0:00:03]} Kxe5 {[%emt 0:00:08]} 0-1

[Event "FIDE WCCC G10 2018"]
[Site "Santiago de Compostela"]
[Date "2018.11.07"]
[Round "3"]
[White "Qu, Greta"]
[Black "Rouda Essa, Alserkal"]
[Result "0-1"]
[ECO "C44"]
[WhiteElo "1360"]
[BlackElo "1635"]
[Annotator "NA RC"]
[PlyCount "66"]
[EventDate "2018.11.04"]
[EventType "swiss"]
[EventCountry "ESP"]
[SourceTitle "playchess.com"]
[Source "ChessBase"]
[SourceQuality "1"]
[TimeControl "40/5400+30:1800+30"]

1. e4 {[%emt 0:00:00]} e5 {[%emt 0:00:00]} 2. Nf3 {[%emt 0:00:00]} Nc6 {[%emt 0:00:03]} 3. d4 {[%emt 0:00:00]} exd4 {[%emt 0:00:17]} 4. Nxd4 {[%emt 0:00:02]} Nf6 {[%emt 0:00:25]} 5. Nc3 {[%emt 0:00:04]} Bb4 {[%emt 0:00:24]} 6. Nxc6 {[%emt 0:00:26]} bxc6 {[%emt 0:00:26]} 7. Bd3 {[%emt 0:00:23]} d5 {[%emt 0:00:19]} 8. exd5 {[%emt 0:00:13]} cxd5 {[%emt 0:00:08]} 9. O-O {[%emt 0:00:38]} O-O {[%emt 0:00:12]} 10. Bg5 {[%emt 0:00:45]} c6 {[%emt 0:00:57]} 11. Qf3 {[%emt 0:00:51]} Be7 {[%emt 0:00:42]} 12. h3 {[%emt 0:04:04]} Rb8 {[%emt 0:01:45]} 13. Rab1 {[%emt 0:02:29]} Bb7 {[%emt 0:04:07]} 14. Qd1 {[%emt 0:07:25]} c5 {[%emt 0:02:46]} 15. b3 {[%emt 0:07:36]} d4 {[%emt 0:00:44]} 16. Bxf6 {[%emt 0:01:06]} Bxf6 {[%emt 0:00:35]} 17. Ne4 {[%emt 0:02:53]} Be7 {[%emt 0:00:26]} 18. Nxc5 {[%emt 0:12:35]} Ba8 {[%emt 0:22:19]} 19. Ne4 {[%emt 0:02:54]} f5 {[%emt 0:05:39]} 20. Nd2 {[%emt 0:04:53]} Rb6 {[%emt 0:01:22]} 21. Nf3 {[%emt 0:03:03]} Rg6 {[%emt 0:00:28]} 22. Kh1 {[%emt 0:01:42]} Kh8 {[%emt 0:03:17]} 23. Rg1 {[%emt 0:05:22]} Bc5 {[%emt 0:10:50]} 24. a4 {[%emt 0:12:23]} Rh6 {[%emt 0:09:05]} 25. Re1 {[%emt 0:02:55]} Qd6 {[%emt 0:06:20]} 26. Qe2 {[%emt 0:04:09]} Qg6 {[%emt 0:12:56]} 27. b4 {[%emt 0:05:36]} Bd6 {[%emt 0:02:16]} 28. Qd1 {[%emt 0:04:15]} Qg4 {[%emt 0:00:41]} 29. Be2 {[%emt 0:03:36]} Rxh3+ {[%emt 0:01:09]} 30. Kg1 {[%emt 0:01:55]} Rh2 {[%emt 0:02:32]} 31. Bf1 {[%emt 0:00:39]} Qh5 {[%emt 0:00:31]} 32. g3 {[%emt 0:03:21]} Rh1+ {[%emt 0:00:15]} 33. Kg2 {[%emt 0:00:15]} Qh3# {[%emt 0:00:10]} 0-1

[Event "FIDE WCCC G10 2018"]
[Site "Santiago de Compostela"]
[Date "2018.11.07"]
[Round "3"]
[White "Abdinova, Narmin"]
[Black "Petrosyan, Ani"]
[Result "1-0"]
[ECO "B13"]
[WhiteElo "1320"]
[BlackElo "1442"]
[Annotator "NA RC"]
[PlyCount "71"]
[EventDate "2018.11.04"]
[EventType "swiss"]
[EventCountry "ESP"]
[SourceTitle "playchess.com"]
[Source "ChessBase"]
[SourceQuality "1"]
[TimeControl "40/5400+30:1800+30"]

1. e4 {[%emt 0:00:00]} c6 {[%emt 0:00:00]} 2. d4 {[%emt 0:00:00]} d5 {[%emt 0:00:00]} 3. exd5 {[%emt 0:00:00]} cxd5 {[%emt 0:00:01]} 4. Bd3 {[%emt 0:00:00]} Nf6 {[%emt 0:02:03]} 5. Bf4 {[%emt 0:00:00]} g6 {[%emt 0:06:00]} 6. c3 {[%emt 0:00:39]} Qb6 {[%emt 0:05:07]} 7. Qb3 {[%emt 0:04:00]} Bg7 {[%emt 0:01:49]} 8. Qxb6 {[%emt 0:01:45]} axb6 {[%emt 0:00:09]} 9. Bc7 {[%emt 0:00:28]} Bf5 {[%emt 0:18:35]} 10. Bxf5 {[%emt 0:00:49]} gxf5 {[%emt 0:00:06]} 11. Bxb6 {[%emt 0:04:44]} Na6 {[%emt 0:00:30]} 12. Nf3 {[%emt 0:06:57]} Nd7 {[%emt 0:01:28]} 13. Ba5 {[%emt 0:00:23]} b6 {[%emt 0:01:05]} 14. Bb4 {[%emt 0:00:26]} Nxb4 {[%emt 0:02:39]} 15. cxb4 {[%emt 0:00:12]} Rc8 {[%emt 0:00:18]} 16. Nc3 {[%emt 0:01:54]} e6 {[%emt 0:00:30]} 17. a3 {[%emt 0:02:22]} Ke7 {[%emt 0:05:33]} 18. Ke2 {[%emt 0:01:20]} Rc4 {[%emt 0:01:58]} 19. Rhd1 {[%emt 0:04:03]} Bf6 {[%emt 0:06:41]} 20. Rac1 {[%emt 0:01:03]} Rg8 {[%emt 0:00:32]} 21. h3 {[%emt 0:00:54]} Rxg2 {[%emt 0:01:42]} 22. b3 {[%emt 0:00:10]} Rxc3 {[%emt 0:19:59]} 23. Rxc3 {[%emt 0:00:19]} Nf8 {[%emt 0:01:24]} 24. Rc7+ {[%emt 0:00:32]} Ke8 {[%emt 0:01:36]} 25. Rc8+ {[%emt 0:00:13]} Ke7 {[%emt 0:00:23]} 26. Rc7+ {[%emt 0:01:40]} Ke8 {[%emt 0:00:35]} 27. a4 {[%emt 0:03:18]} Bd8 {[%emt 0:01:56]} 28. Ra7 {[%emt 0:01:58]} Ng6 {[%emt 0:02:09]} 29. Ke3 {[%emt 0:04:33]} Be7 {[%emt 0:04:36]} 30. a5 {[%emt 0:01:44]} b5 {[%emt 0:04:25]} 31. Rg1 {[%emt 0:01:34]} Bg5+ {[%emt 0:04:15]} 32. Ke2 {[%emt 0:01:43]} Nf4+ {[%emt 0:01:46]} 33. Kf1 {[%emt 0:00:52]} Rxg1+ {[%emt 0:00:58]} 34. Kxg1 {[%emt 0:00:04]} Be7 {[%emt 0:00:38]} 35. Rxe7+ {[%emt 0:00:32]} Kxe7 {[%emt 0:00:26]} 36. a6 {[%emt 0:00:28]} 1-0

[Event "FIDE WCCC G10 2018"]
[Site "Santiago de Compostela"]
[Date "2018.11.07"]
[Round "3"]
[White "Ho, Ngoc Vy"]
[Black "Gupta, Sara"]
[Result "1-0"]
[ECO "D37"]
[WhiteElo "1275"]
[BlackElo "1561"]
[Annotator "NA RC"]
[PlyCount "59"]
[EventDate "2018.11.04"]
[EventType "swiss"]
[EventCountry "ESP"]
[SourceTitle "playchess.com"]
[Source "ChessBase"]
[SourceQuality "1"]
[TimeControl "40/5400+30:1800+30"]

1. d4 {[%emt 0:00:00]} d5 {[%emt 0:00:18]} 2. c4 {[%emt 0:00:00]} e6 {[%emt 0:00:34]} 3. Nf3 {[%emt 0:00:31]} Nf6 {[%emt 0:00:47]} 4. Nc3 {[%emt 0:03:02]} Nbd7 {[%emt 0:01:17]} 5. e3 {[%emt 0:00:55]} Be7 {[%emt 0:01:22]} 6. Bd3 {[%emt 0:00:43]} dxc4 {[%emt 0:01:15]} 7. Bxc4 {[%emt 0:00:29]} c5 {[%emt 0:01:13]} 8. O-O {[%emt 0:02:57]} O-O {[%emt 0:01:34]} 9. Qc2 {[%emt 0:03:38]} cxd4 {[%emt 0:03:13]} 10. Nxd4 {[%emt 0:01:31]} b6 {[%emt 0:18:03]} 11. Nc6 {[%emt 0:07:59]} Qe8 {[%emt 0:01:13]} 12. Nb5 {[%emt 0:00:16]} Nc5 {[%emt 0:09:37]} 13. Ncxa7 {[%emt 0:08:17]} Qd7 {[%emt 0:06:19]} 14. Rd1 {[%emt 0:02:02]} Qb7 {[%emt 0:01:18]} 15. b4 {[%emt 0:07:30]} Na6 {[%emt 0:04:42]} 16. a3 {[%emt 0:03:11]} Bd7 {[%emt 0:01:46]} 17. Bb2 {[%emt 0:03:41]} Nc7 {[%emt 0:06:46]} 18. Bxf6 {[%emt 0:01:37]} Bxf6 {[%emt 0:04:28]} 19. Rxd7 {[%emt 0:02:15]} Bxa1 {[%emt 0:00:59]} 20. Rxc7 {[%emt 0:00:14]} Qb8 {[%emt 0:00:54]} 21. Nc6 {[%emt 0:00:23]} Qe8 {[%emt 0:00:25]} 22. Nd6 {[%emt 0:00:26]} Qxc6 {[%emt 0:01:50]} 23. Rxc6 {[%emt 0:00:19]} Rxa3 {[%emt 0:00:16]} 24. h3 {[%emt 0:00:31]} Be5 {[%emt 0:00:14]} 25. Qe4 {[%emt 0:01:03]} Ra1+ {[%emt 0:00:19]} 26. Bf1 {[%emt 0:00:13]} Bf6 {[%emt 0:00:27]} 27. Rc7 {[%emt 0:01:10]} g6 {[%emt 0:00:27]} 28. Nxf7 {[%emt 0:00:35]} Rxf7 {[%emt 0:00:11]} 29. Qxe6 {[%emt 0:00:08]} Ra7 {[%emt 0:00:16]} 30. Qxf7+ {[%emt 0:00:11]} 1-0

[Event "FIDE WCCC G10 2018"]
[Site "Santiago de Compostela"]
[Date "2018.11.07"]
[Round "3"]
[White "Petrenko, Maryna"]
[Black "Khamdamova, Afruza"]
[Result "0-1"]
[ECO "D02"]
[WhiteElo "1249"]
[BlackElo "1691"]
[Annotator "NA RC"]
[PlyCount "50"]
[EventDate "2018.11.04"]
[EventType "swiss"]
[EventCountry "ESP"]
[SourceTitle "playchess.com"]
[Source "ChessBase"]
[SourceQuality "1"]
[TimeControl "40/5400+30:1800+30"]

1. d4 {[%emt 0:00:00]} Nf6 {[%emt 0:00:00]} 2. Nf3 {[%emt 0:00:00]} d5 {[%emt 0:00:00]} 3. Bf4 {[%emt 0:00:00]} Bf5 {[%emt 0:00:08]} 4. e3 {[%emt 0:00:00]} e6 {[%emt 0:00:29]} 5. Nbd2 {[%emt 0:00:23]} Be7 {[%emt 0:00:33]} 6. Be2 {[%emt 0:01:32]} O-O {[%emt 0:06:33]} 7. O-O {[%emt 0:00:20]} c5 {[%emt 0:00:07]} 8. c4 {[%emt 0:01:42]} Nc6 {[%emt 0:00:45]} 9. Nb3 {[%emt 0:03:51]} Nd7 {[%emt 0:08:16]} 10. Rc1 {[%emt 0:01:16]} cxd4 {[%emt 0:04:54]} 11. cxd5 {[%emt 0:01:24]} exd5 {[%emt 0:02:00]} 12. Nbxd4 {[%emt 0:00:38]} Bg4 {[%emt 0:12:59]} 13. Nxc6 {[%emt 0:03:36]} bxc6 {[%emt 0:00:05]} 14. Rxc6 {[%emt 0:13:00]} Nc5 {[%emt 0:02:38]} 15. Qd4 {[%emt 0:04:22]} Ne6 {[%emt 0:03:47]} 16. Qd2 {[%emt 0:01:25]} Nxf4 {[%emt 0:01:26]} 17. exf4 {[%emt 0:00:20]} Bf6 {[%emt 0:09:32]} 18. h3 {[%emt 0:04:21]} Bc8 {[%emt 0:05:35]} 19. Rd1 {[%emt 0:06:14]} Bb7 {[%emt 0:00:07]} 20. Rcc1 {[%emt 0:00:20]} Qb6 {[%emt 0:02:15]} 21. b3 {[%emt 0:01:59]} Rad8 {[%emt 0:03:12]} 22. Nd4 {[%emt 0:06:20]} Rfe8 {[%emt 0:00:10]} 23. Bf3 {[%emt 0:04:47]} Bxd4 {[%emt 0:00:07]} 24. Qxd4 {[%emt 0:00:19]} Re1+ {[%emt 0:00:03]} 25. Kh2 {[%emt 0:00:07]} Qxd4 {[%emt 0:00:05]} 0-1

[Event "FIDE WCCC G10 2018"]
[Site "Santiago de Compostela"]
[Date "2018.11.07"]
[Round "3"]
[White "Galvez Aguirre, Valentina"]
[Black "Sureda Gonzalez, Cristina"]
[Result "1/2-1/2"]
[ECO "B21"]
[WhiteElo "1173"]
[BlackElo "1422"]
[Annotator "NA RC"]
[PlyCount "82"]
[EventDate "2018.11.04"]
[EventType "swiss"]
[EventCountry "ESP"]
[SourceTitle "playchess.com"]
[Source "ChessBase"]
[SourceQuality "1"]
[TimeControl "40/5400+30:1800+30"]

1. e4 {[%emt 0:00:00]} c5 {[%emt 0:00:00]} 2. d4 {[%emt 0:00:00]} cxd4 {[%emt 0:00:00]} 3. c3 {[%emt 0:00:00]} dxc3 4. Nxc3 {[%emt 0:00:10]} Nc6 {[%emt 0:00:57]} 5. Nf3 {[%emt 0:00:10]} d6 {[%emt 0:00:53]} 6. Bc4 {[%emt 0:00:27]} a6 {[%emt 0:00:46]} 7. O-O {[%emt 0:01:55]} Nf6 {[%emt 0:00:53]} 8. e5 {[%emt 0:15:59]} dxe5 {[%emt 0:01:52]} 9. Qxd8+ {[%emt 0:00:15]} Nxd8 {[%emt 0:00:17]} 10. Nxe5 {[%emt 0:01:01]} e6 {[%emt 0:01:27]} 11. Rd1 {[%emt 0:01:50]} Nd7 {[%emt 0:02:10]} 12. Nf3 {[%emt 0:05:07]} Nc6 {[%emt 0:06:07]} 13. Bf4 {[%emt 0:07:24]} b5 {[%emt 0:08:15]} 14. Bd3 {[%emt 0:06:29]} Nc5 {[%emt 0:18:02]} 15. Be2 {[%emt 0:18:32]} b4 {[%emt 0:03:20]} 16. Nb1 {[%emt 0:02:46]} Bb7 {[%emt 0:00:59]} 17. Nbd2 {[%emt 0:05:38]} Be7 {[%emt 0:07:10]} 18. Nc4 {[%emt 0:06:49]} O-O {[%emt 0:04:35]} 19. Be3 {[%emt 0:05:56]} Rad8 {[%emt 0:03:01]} 20. Nfe5 {[%emt 0:07:27]} Ne4 {[%emt 0:08:31]} 21. Bf3 {[%emt 0:03:01]} Nxe5 {[%emt 0:01:44]} 22. Nxe5 {[%emt 0:00:15]} f6 {[%emt 0:02:30]} 23. Nd3 {[%emt 0:05:16]} Rfe8 {[%emt 0:02:04]} 24. Nf4 {[%emt 0:02:49]} Bf8 {[%emt 0:01:34]} 25. Rxd8 {[%emt 0:00:21]} Rxd8 {[%emt 0:01:15]} 26. Nxe6 {[%emt 0:00:09]} Rc8 {[%emt 0:01:31]} 27. Nxf8 {[%emt 0:00:30]} Kxf8 {[%emt 0:00:52]} 28. Rc1 {[%emt 0:00:50]} Rxc1+ {[%emt 0:01:48]} 29. Bxc1 {[%emt 0:00:08]} f5 {[%emt 0:00:26]} 30. Kf1 {[%emt 0:00:55]} Ke7 {[%emt 0:01:37]} 31. Ke2 {[%emt 0:01:07]} Ke6 {[%emt 0:00:58]} 32. Bd2 {[%emt 0:01:06]} a5 {[%emt 0:01:16]} 33. Be3 {[%emt 0:01:26]} Bd5 {[%emt 0:02:31]} 34. Bxe4 {[%emt 0:00:33]} Bxe4 {[%emt 0:00:41]} 35. f3 {[%emt 0:00:10]} Bd5 {[%emt 0:00:56]} 36. b3 {[%emt 0:00:12]} Bc6 {[%emt 0:00:45]} 37. Bb6 {[%emt 0:01:04]} a4 {[%emt 0:00:31]} 38. Ba5 {[%emt 0:00:20]} axb3 {[%emt 0:00:38]} 39. axb3 {[%emt 0:00:12]} Bd5 {[%emt 0:00:09]} 40. Bxb4 {[%emt 0:00:00]} Bxb3 {[%emt 0:00:00]} 41. g3 {[%emt 0:00:52]} g6 {[%emt 0:01:07]} 1/2-1/2